fUSD/lending_fUSD_20240217
["ID","MTS","AMOUNT","RATE_DAILY","PERIOD"]
[314290540,1708157480097,-500.0,0.00052876,60]
[314290541,1708157480107,-500.0,0.00052876,60]
[314290542,1708157480117,-2150.49,0.00052876,60]
[314290543,1708157480128,-958.24,0.00052876,60]
[314290544,1708157480138,-1655.71,0.00052876,60]
[314290545,1708157480148,-500.0,0.00052876,60]
[314290546,1708157480158,-543.92,0.00052876,60]
[314290547,1708157480168,-707.56,0.00052876,60]
[314290548,1708157480178,-1947.64,0.00052876,60]
[314290549,1708157480188,-500.0,0.00052876,60]
[314290550,1708157480199,-1182.25,0.00052876,60]
[314290551,1708157480209,-1133.06,0.00052876,60]
[314290552,1708157480219,-713.76,0.00052876,60]
[314290553,1708157480229,-577.85,0.00052876,60]
[314290554,1708157480239,-1166.8,0.00052876,60]
[314290555,1708157480248,-500.0,0.00052876,60]
[314290556,1708157480259,-554.4,0.00052876,60]
[314290557,1708157480270,-569.35,0.00052876,60]
[314290558,1708157480281,-500.0,0.00052876,60]
[314290559,1708157480291,-500.0,0.00052876,60]
[314290560,1708157480301,-739.49,0.00052876,60]
[314290561,1708157480311,-500.0,0.00052876,60]
[314290562,1708157480324,-500.0,0.00052876,60]
[314290563,1708157480333,-11780.69,0.00052876,60]
[314290564,1708157480345,-500.0,0.00052876,60]
[314290565,1708157480354,-879.44,0.00052876,60]
[314290566,1708157480365,-50000.0,0.000529,120]
[314290567,1708157480374,-391.78881407,0.000529,30]
[314290568,1708157480384,-38604.35455438,0.000529,30]
[314290569,1708157480394,-32075.97873068,0.000529,30]
[314290570,1708157480403,-4078.78495806,0.000529,120]
[314290571,1708157480412,-742.67,0.00052915,30]
[314290572,1708157480422,-4555.2,0.00052957,117]
[314290573,1708157480432,-200.0,0.00052987,85]
[314290574,1708157480441,-200.0,0.00052987,84]
[314290575,1708157480451,-3000.0,0.00053,47]
[314290576,1708157480460,-5000.0,0.00053,62]
[314290577,1708157480469,-3000.0,0.00053,47]
[314290578,1708157480480,-5000.0,0.00053,62]
[314290579,1708157480490,-3000.0,0.00053,47]
[314290580,1708157480500,-5000.0,0.00053,62]
[314290581,1708157480509,-3000.0,0.00053,47]
[314290582,1708157480519,-191.87566992,0.00053,53]
[314290583,1708157480529,-5000.0,0.00053,62]
[314290584,1708157480539,-3000.0,0.00053,47]
[314290585,1708157480548,-1000.0,0.00053,15]
[314290586,1708157480558,-181.12,0.00053,30]
[314290587,1708157480567,-201.16350209,0.00053,30]
[314290588,1708157480577,-12563.27139164,0.00053,15]
[314290589,1708157480586,-152.34,0.00053,120]
[314290590,1708157480596,-152.34,0.00053,120]
[314290591,1708157480605,-152.34,0.00053,120]
[314290592,1708157480615,-152.34,0.00053,120]
[314290593,1708157480624,-152.34,0.00053,120]
[314290594,1708157480633,-152.34,0.00053,120]
[314290595,1708157480643,-152.34,0.00053,120]
[314290596,1708157480652,-152.34,0.00053,120]
[314290597,1708157480661,-152.34,0.00053,120]
[314290598,1708157480671,-152.34,0.00053,120]
[314290599,1708157480680,-152.34,0.00053,120]
[314290600,1708157480690,-152.34,0.00053,120]
[314290601,1708157480700,-152.34,0.00053,120]
[314290602,1708157480709,-152.34,0.00053,120]
[314290603,1708157480719,-152.34,0.00053,120]
[314290604,1708157480729,-152.34,0.00053,120]
[314290605,1708157480738,-152.34,0.00053,120]
[314290606,1708157480747,-152.34,0.00053,120]
[314290607,1708157480757,-152.34,0.00053,120]
[314290608,1708157480766,-152.34,0.00053,120]
[314290609,1708157480776,-152.34,0.00053,120]
[314290610,1708157480785,-152.34,0.00053,120]
[314290611,1708157480794,-152.34,0.00053,120]
[314290612,1708157480804,-152.34,0.00053,120]
[314290613,1708157480813,-152.34,0.00053,120]
[314290614,1708157480822,-205.0,0.00053039,42]
[314290615,1708157480832,-159.879999,0.00053138,30]
[314290616,1708157480842,-152.266667,0.00053138,30]
[314290617,1708157480852,-152.266666,0.00053138,30]
[314290618,1708157480861,-182.72,0.00053138,30]
[314290619,1708157480871,-328.896,0.00053138,30]
[314290620,1708157480880,-304.533333,0.00053138,30]
[314290621,1708157480889,-182.72,0.00053138,30]
[314290622,1708157480899,-152.266667,0.00053138,30]
[314290623,1708157480908,-152.266667,0.00053138,30]
[314290624,1708157480917,-173.021788,0.00053148,102]
[314290625,1708157480927,-739.89,0.0005315,60]
[314290626,1708157480937,-500.0,0.0005315,60]
[314290627,1708157480948,-500.0,0.0005315,60]
[314290628,1708157480958,-493.8386423,0.0005315,60]
[314290629,1708157480967,-472.50803834,0.0005315,2]
[314290630,1708157480978,-500.0,0.0005315,60]
[314290631,1708157480988,-629.85,0.0005315,60]
[314290632,1708157480998,-500.0,0.0005315,60]
[314290633,1708157481008,-583.88,0.0005315,2]
[314290634,1708157481018,-618.81,0.0005315,60]
[314290635,1708157481028,-526.92,0.0005315,60]
[314290636,1708157481037,-246.36097427,0.0005315,60]
[314290637,1708157481047,-1028.76,0.0005315,2]
[314290638,1708157481057,-500.0,0.0005315,60]
[314290639,1708157481066,-1162.21,0.0005315,60]
[314290640,1708157481076,-2943.7875,0.0005315,7]
[314290641,1708157481086,-500.0,0.0005315,60]
[314290642,1708157481095,-1393.94,0.0005315,60]
[314290643,1708157481105,-500.0,0.0005315,60]
[314290644,1708157481228,-993.11,0.0005315,60]
[314290645,1708157481238,-717.72,0.0005315,60]
[314290646,1708157481248,-500.0,0.0005315,60]
[314290647,1708157481258,-500.0,0.0005315,60]
[314290648,1708157481268,-579.69721338,0.0005315,60]
[314290649,1708157481278,-500.73,0.0005315,60]
[314290650,1708157481288,-500.0,0.0005315,60]
[314290651,1708157481297,-854.01,0.0005315,60]
[314290652,1708157481306,-500.0,0.0005315,60]
[314290653,1708157481316,-1515.85,0.0005315,60]
[314290654,1708157481326,-636.17,0.0005315,60]
[314290655,1708157481335,-1186.43,0.0005315,60]
[314290656,1708157481345,-3147.75,0.0005315,60]
[314290657,1708157481355,-657.81,0.0005315,60]
[314290658,1708157481364,-569.8,0.0005315,60]
[314290659,1708157481374,-500.0,0.0005315,60]
[314290660,1708157481384,-5184.93,0.0005315,60]
[314290661,1708157481394,-500.0,0.0005315,60]
[314290662,1708157481403,-500.0,0.0005315,60]
[314290663,1708157481413,-556.89,0.0005315,60]
[314290664,1708157481423,-500.0,0.0005315,60]
[314290665,1708157481432,-1446.13,0.0005315,60]
[314290666,1708157481442,-500.0,0.0005315,60]
[314290667,1708157481452,-500.0,0.0005315,60]
[314290668,1708157481461,-500.0,0.0005315,60]
[314290669,1708157481471,-1868.35,0.0005315,60]
[314290670,1708157481480,-1210.8,0.0005315,14]
[314290671,1708157481490,-643.5,0.0005315,60]
[314290672,1708157481499,-1614.2,0.0005315,60]
[314290673,1708157481508,-3236.35,0.0005315,60]
[314290674,1708157481518,-502.24,0.0005315,60]
[314290675,1708157481528,-804.5,0.0005315,60]
[314290676,1708157481537,-500.0,0.0005315,60]
[314290677,1708157481546,-910.43,0.0005315,60]
[314290678,1708157481556,-500.0,0.0005315,60]
[314290679,1708157481566,-500.0,0.0005315,60]
[314290680,1708157481575,-532.93,0.0005315,60]
[314290681,1708157481584,-500.0,0.0005315,60]
[314290682,1708157481593,-500.0,0.0005315,60]
[314290683,1708157481603,-2150.49,0.0005315,60]
[314290684,1708157481613,-958.24,0.0005315,60]
[314290685,1708157481623,-1655.71,0.0005315,60]
[314290686,1708157481632,-500.0,0.0005315,60]
[314290687,1708157481642,-543.92,0.0005315,60]
[314290688,1708157481652,-707.56,0.0005315,60]
[314290689,1708157481662,-1947.64,0.0005315,60]
[314290690,1708157481671,-500.0,0.0005315,60]
[314290691,1708157481681,-1182.25,0.0005315,60]
[314290692,1708157481690,-1133.06,0.0005315,60]
[314290693,1708157481699,-713.76,0.0005315,60]
[314290694,1708157481708,-577.85,0.0005315,60]
[314290695,1708157481717,-1166.8,0.0005315,60]
[314290696,1708157481727,-647.53418675,0.0005315,60]
[314290697,1708157481736,-554.4,0.0005315,60]
[314290698,1708157481745,-569.35,0.0005315,60]
[314290699,1708157481754,-500.0,0.0005315,60]
[314290700,1708157481763,-500.0,0.0005315,60]
[314290701,1708157481773,-739.49,0.0005315,60]
[314290702,1708157481782,-500.0,0.0005315,60]
[314290703,1708157481791,-500.0,0.0005315,60]
[314290704,1708157481801,-11780.69,0.0005315,60]
[314290705,1708157481810,-500.0,0.0005315,60]
[314290706,1708157481819,-160.0,0.00053151,120]
[314290707,1708157481828,-219.0,0.00053155,120]
[314290708,1708157481837,-2000.0,0.000532,2]
[314290709,1708157481847,-179.021788,0.00053248,103]
[314290710,1708157481856,-623.26,0.000533,120]
[314290711,1708157481865,-538.98049264,0.0005332,90]
[314290712,1708157481874,-25000.0,0.000534,120]
[314290713,1708157481883,-2000.0,0.000534,2]
[314290714,1708157481892,-739.89,0.00053424,60]
[314290715,1708157481902,-500.6388365,0.00053424,60]
[314290716,1708157481911,-500.0,0.00053424,60]
[314290717,1708157481921,-500.0,0.00053424,60]
[314290718,1708157481932,-629.85,0.00053424,60]
[314290719,1708157481942,-500.0,0.00053424,60]
[314290720,1708157481953,-583.88,0.00053424,2]
[314290721,1708157481962,-618.81,0.00053424,60]
[314290722,1708157481972,-526.92,0.00053424,60]
[314290723,1708157481982,-1028.76,0.00053424,2]
[314290724,1708157481991,-500.0,0.00053424,60]
[314290725,1708157482000,-1162.21,0.00053424,60]
[314290726,1708157482009,-500.0,0.00053424,60]
[314290727,1708157482018,-1393.94,0.00053424,60]
[314290728,1708157482029,-500.0,0.00053424,60]
[314290729,1708157482038,-993.11,0.00053424,60]
[314290730,1708157482047,-717.72,0.00053424,60]
[314290731,1708157482056,-500.0,0.00053424,60]
[314290732,1708157482067,-500.0,0.00053424,60]
[314290733,1708157482077,-500.73,0.00053424,60]
[314290734,1708157482086,-238.09942292,0.00053424,60]
[314290735,1708157482095,-854.01,0.00053424,60]
[314290736,1708157482105,-500.0,0.00053424,60]
[314290737,1708157482119,-1515.85,0.00053424,60]
[314290738,1708157482138,-636.17,0.00053424,60]
[314290739,1708157482147,-1186.43,0.00053424,60]
[314290740,1708157482157,-3147.75,0.00053424,60]
[314290741,1708157482166,-657.81,0.00053424,60]
[314290742,1708157482176,-569.8,0.00053424,60]
[314290743,1708157482186,-500.0,0.00053424,60]
[314290744,1708157482196,-5184.93,0.00053424,60]
[314290745,1708157482206,-500.0,0.00053424,60]
[314290746,1708157482215,-500.0,0.00053424,60]
[314290747,1708157482225,-556.89,0.00053424,60]
[314290748,1708157482234,-500.0,0.00053424,60]
[314290749,1708157482243,-1446.13,0.00053424,60]
[314290750,1708157482253,-500.0,0.00053424,60]
[314290751,1708157482263,-500.0,0.00053424,60]
[314290752,1708157482272,-500.0,0.00053424,60]
[314290753,1708157482282,-1868.35,0.00053424,60]
[314290754,1708157482291,-1210.8,0.00053424,14]
[314290755,1708157482300,-643.5,0.00053424,60]
[314290756,1708157482309,-1614.2,0.00053424,60]
[314290757,1708157482318,-3236.35,0.00053424,60]
[314290758,1708157482328,-502.24,0.00053424,60]
[314290759,1708157482337,-804.5,0.00053424,60]
[314290760,1708157482346,-500.0,0.00053424,60]
[314290761,1708157482355,-910.43,0.00053424,60]
[314290762,1708157482365,-500.0,0.00053424,60]
[314290763,1708157482375,-500.0,0.00053424,60]
[314290764,1708157482384,-532.93,0.00053424,60]
[314290765,1708157482393,-500.0,0.00053424,60]
[314290766,1708157482402,-500.0,0.00053424,60]
[314290767,1708157482411,-2150.49,0.00053424,60]
[314290768,1708157482420,-958.24,0.00053424,60]
[314290769,1708157482430,-1655.71,0.00053424,60]
[314290770,1708157482438,-200.12337631,0.00053424,60]
[314290771,1708157482448,-543.92,0.00053424,60]
[314290772,1708157482457,-707.56,0.00053424,60]
[314290773,1708157482466,-1947.64,0.00053424,60]
[314290774,1708157482475,-500.0,0.00053424,60]
[314290775,1708157482484,-1182.25,0.00053424,60]
[314290776,1708157482493,-1133.06,0.00053424,60]
[314290777,1708157482502,-713.76,0.00053424,60]
[314290778,1708157482510,-577.85,0.00053424,60]
[314290779,1708157482520,-1166.8,0.00053424,60]
[314290780,1708157482529,-554.4,0.00053424,60]
[314290781,1708157482538,-569.35,0.00053424,60]
[314290782,1708157482547,-500.0,0.00053424,60]
[314290783,1708157482556,-739.49,0.00053424,60]
[314290784,1708157482565,-500.0,0.00053424,60]
[314290785,1708157482574,-500.0,0.00053424,60]
[314290786,1708157482583,-11780.69,0.00053424,60]
[314290787,1708157482592,-500.0,0.00053424,60]
[314290788,1708157482602,-173.021788,0.00053448,102]
[314290789,1708157482610,-1000.0,0.00053497,45]
[314290790,1708157482619,-386.47327606,0.000535,120]
[314290791,1708157482628,-160.0,0.00053534,120]
[314290792,1708157482638,-1430.4185452,0.00053563,2]
[314290793,1708157482646,-183134.53108733,0.000536,12]
[314290794,1708157482655,-739.89,0.00053698,60]
[314290795,1708157482664,-468.02366247,0.00053698,60]
[314290796,1708157482674,-500.0,0.00053698,60]
[314290797,1708157482683,-629.85,0.00053698,60]
[314290798,1708157482693,-500.0,0.00053698,60]
[314290799,1708157482702,-583.88,0.00053698,2]
[314290800,1708157482711,-618.81,0.00053698,60]
[314290801,1708157482720,-526.92,0.00053698,60]
[314290802,1708157482729,-1028.76,0.00053698,2]
[314290803,1708157482738,-500.0,0.00053698,60]
[314290804,1708157482747,-1162.21,0.00053698,60]
[314290805,1708157482756,-500.0,0.00053698,60]
[314290806,1708157482765,-1393.94,0.00053698,60]
[314290807,1708157482775,-500.0,0.00053698,60]
[314290808,1708157482784,-717.72,0.00053698,60]
[314290809,1708157482793,-993.11,0.00053698,60]
[314290810,1708157482802,-500.0,0.00053698,60]
[314290811,1708157482811,-500.0,0.00053698,60]
[314290812,1708157482821,-500.73,0.00053698,60]
[314290813,1708157482830,-854.01,0.00053698,60]
[314290814,1708157482839,-500.0,0.00053698,60]
[314290815,1708157482848,-1515.85,0.00053698,60]
[314290816,1708157482857,-636.17,0.00053698,60]
[314290817,1708157482867,-1186.43,0.00053698,60]
[314290818,1708157482876,-3147.75,0.00053698,60]
[314290819,1708157482885,-657.81,0.00053698,60]
[314290820,1708157482895,-569.8,0.00053698,60]
[314290821,1708157482904,-500.0,0.00053698,60]
[314290822,1708157482913,-5184.93,0.00053698,60]
[314290823,1708157482926,-500.0,0.00053698,60]
[314290824,1708157482939,-500.0,0.00053698,60]
[314290825,1708157482950,-556.89,0.00053698,60]
[314290826,1708157482959,-500.0,0.00053698,60]
[314290827,1708157482969,-1446.13,0.00053698,60]
[314290828,1708157482978,-421.69861618,0.00053698,60]
[314290829,1708157482988,-500.0,0.00053698,60]
[314290830,1708157482997,-500.0,0.00053698,60]
[314290831,1708157483006,-1868.35,0.00053698,60]
[314290832,1708157483015,-1210.8,0.00053698,14]
[314290833,1708157483025,-643.5,0.00053698,60]
[314290834,1708157483034,-1614.2,0.00053698,60]
[314290835,1708157483043,-3236.35,0.00053698,60]
[314290836,1708157483052,-502.24,0.00053698,60]
[314290837,1708157483061,-804.5,0.00053698,60]
[314290838,1708157483070,-500.0,0.00053698,60]
[314290839,1708157483078,-910.43,0.00053698,60]
[314290840,1708157483087,-500.0,0.00053698,60]
[314290841,1708157483096,-500.0,0.00053698,60]
[314290842,1708157483105,-532.93,0.00053698,60]
[314290843,1708157483115,-500.0,0.00053698,60]
[314290844,1708157483124,-500.0,0.00053698,60]
[314290845,1708157483134,-2150.49,0.00053698,60]
[314290846,1708157483143,-958.24,0.00053698,60]
[314290847,1708157483152,-1655.71,0.00053698,60]
[314290848,1708157483161,-543.92,0.00053698,60]
[314290849,1708157483171,-707.56,0.00053698,60]
[314290850,1708157483180,-1947.64,0.00053698,60]
[314290851,1708157483190,-500.0,0.00053698,60]
[314290852,1708157483199,-1182.25,0.00053698,60]
[314290853,1708157483209,-1133.06,0.00053698,60]
[314290854,1708157483218,-713.76,0.00053698,60]
[314290855,1708157483227,-577.85,0.00053698,60]
[314290856,1708157483236,-1166.8,0.00053698,60]
[314290857,1708157483245,-554.4,0.00053698,60]
[314290858,1708157483255,-569.35,0.00053698,60]
[314290859,1708157483265,-500.0,0.00053698,60]
[314290860,1708157483275,-739.49,0.00053698,60]
[314290861,1708157483285,-500.0,0.00053698,60]
[314290862,1708157483294,-616.39755566,0.00053698,60]
[314290863,1708157483304,-11780.69,0.00053698,60]
[314290864,1708157483313,-418.30970664,0.00053698,60]
[314290865,1708157483321,-219.0,0.00053703,120]
[314290866,1708157483331,-160.0,0.00053726,120]
[314290867,1708157483340,-179.021788,0.00053748,102]
[314290868,1708157483349,-20314.32216363,0.00053838,30]
[314290869,1708157483358,-1612.58,0.00053865,2]
[314290870,1708157483367,-25000.0,0.000539,120]
[314290871,1708157483376,-3847.99160487,0.000539,2]
[314290872,1708157483566,-81645.00839513,0.000539,2]
[314290873,1708157483576,-182.72,0.00053943,30]
[314290874,1708157483587,-328.896,0.00053943,30]
[314290875,1708157483596,-304.533333,0.00053943,30]
[314290876,1708157483605,-182.72,0.00053943,30]
[314290877,1708157483615,-152.0,0.00053956,6]
[314290878,1708157483624,-150.0,0.0005397,120]
[314290879,1708157483633,-739.89,0.00053972,60]
[314290880,1708157483642,-367.24970475,0.00053972,60]
[314290881,1708157483652,-629.85,0.00053972,60]
[314290882,1708157483662,-500.0,0.00053972,60]
[314290883,1708157483672,-583.88,0.00053972,2]
[314290884,1708157483681,-618.81,0.00053972,60]
[314290885,1708157483690,-526.92,0.00053972,60]
[314290886,1708157483699,-1028.76,0.00053972,2]
[314290887,1708157483709,-500.0,0.00053972,60]
[314290888,1708157483717,-1162.21,0.00053972,60]
[314290889,1708157483727,-3270.875,0.00053972,7]
[314290890,1708157483736,-500.0,0.00053972,60]
[314290891,1708157483745,-1393.94,0.00053972,60]
[314290892,1708157483754,-500.0,0.00053972,60]
[314290893,1708157483764,-717.72,0.00053972,60]
[314290894,1708157483773,-993.11,0.00053972,60]
[314290895,1708157483782,-500.0,0.00053972,60]
[314290896,1708157483791,-500.0,0.00053972,60]
[314290897,1708157483800,-500.73,0.00053972,60]
[314290898,1708157483810,-854.01,0.00053972,60]
[314290899,1708157483819,-500.0,0.00053972,60]
[314290900,1708157483827,-1515.85,0.00053972,60]
[314290901,1708157483836,-636.17,0.00053972,60]
[314290902,1708157483846,-1186.43,0.00053972,60]
[314290903,1708157483855,-3147.75,0.00053972,60]
[314290904,1708157483863,-657.81,0.00053972,60]
[314290905,1708157483873,-569.8,0.00053972,60]
[314290906,1708157483882,-500.0,0.00053972,60]
[314290907,1708157483891,-5184.93,0.00053972,60]
[314290908,1708157483900,-500.0,0.00053972,60]
[314290909,1708157483909,-500.0,0.00053972,60]
[314290910,1708157483918,-556.89,0.00053972,60]
[314290911,1708157483928,-500.0,0.00053972,60]
[314290912,1708157483937,-1446.13,0.00053972,60]
[314290913,1708157483948,-500.0,0.00053972,60]
[314290914,1708157483957,-500.0,0.00053972,60]
[314290915,1708157483967,-1868.35,0.00053972,60]
[314290916,1708157483977,-1210.8,0.00053972,14]
[314290917,1708157483986,-643.5,0.00053972,60]
[314290918,1708157483996,-1614.2,0.00053972,60]
[314290919,1708157484007,-3236.35,0.00053972,60]
[314290920,1708157484020,-502.24,0.00053972,60]
[314290921,1708157484062,-804.5,0.00053972,60]
[314290922,1708157484073,-500.0,0.00053972,60]
[314290923,1708157484084,-910.43,0.00053972,60]
[314290924,1708157484094,-500.0,0.00053972,60]
[314290925,1708157484103,-500.0,0.00053972,60]
[314290926,1708157484113,-532.93,0.00053972,60]
[314290927,1708157484123,-500.0,0.00053972,60]
[314290928,1708157484134,-500.0,0.00053972,60]
[314290929,1708157484144,-2150.49,0.00053972,60]
[314290930,1708157484153,-958.24,0.00053972,60]
[314290931,1708157484163,-1655.71,0.00053972,60]
[314290932,1708157484173,-543.92,0.00053972,60]
[314290933,1708157484183,-707.56,0.00053972,60]
[314290934,1708157484193,-1947.64,0.00053972,60]
[314290935,1708157484203,-373.81524868,0.00053972,60]
[314290936,1708157484213,-1182.25,0.00053972,60]
[314290937,1708157484224,-1133.06,0.00053972,60]
[314290938,1708157484233,-713.76,0.00053972,60]
[314290939,1708157484243,-577.85,0.00053972,60]
[314290940,1708157484253,-1166.8,0.00053972,60]
[314290941,1708157484266,-554.4,0.00053972,60]
[314290942,1708157484276,-569.35,0.00053972,60]
[314290943,1708157484290,-500.0,0.00053972,60]
[314290944,1708157484301,-739.49,0.00053972,60]
[314290945,1708157484312,-500.0,0.00053972,60]
[314290946,1708157484323,-11780.69,0.00053972,60]
[314290947,1708157484460,-200.0,0.00053987,88]
[314290948,1708157484490,-200.0,0.00053987,87]
[314290949,1708157484501,-200.0,0.00053987,86]
[314290950,1708157484513,-182.00450485,0.00054,120]
[314290951,1708157484535,-25000.0,0.00054,10]
[314290952,1708157484546,-250.0,0.00054,54]
[314290953,1708157484557,-19000.0,0.00054,60]
[314290954,1708157484569,-19000.0,0.00054,90]
[314290955,1708157484580,-1317.96884547,0.00054,30]
[314290956,1708157484592,-1000.0,0.00054,15]
[314290957,1708157484603,-5000.0,0.00054,120]
[314290958,1708157484614,-5000.0,0.00054,120]
[314290959,1708157484625,-3607.5,0.00054,120]
[314290960,1708157484636,-196.95054526,0.00054,60]
[314290961,1708157484648,-150.0,0.00054,120]
[314290962,1708157484659,-173.021788,0.00054148,103]
[314290963,1708157484670,-10000.0,0.00054179,4]
[314290964,1708157484681,-663.1363543,0.00054209,2]
[314290965,1708157484692,-159.879999,0.00054212,30]
[314290966,1708157484703,-739.89,0.00054246,60]
[314290967,1708157484715,-629.85,0.00054246,60]
[314290968,1708157484725,-500.0,0.00054246,60]
[314290969,1708157484736,-583.88,0.00054246,2]
[314290970,1708157484746,-618.81,0.00054246,60]
[314290971,1708157484757,-526.92,0.00054246,60]
[314290972,1708157484775,-1028.76,0.00054246,2]
[314290973,1708157484786,-500.0,0.00054246,60]
[314290974,1708157484798,-1162.21,0.00054246,60]
[314290975,1708157484809,-500.0,0.00054246,60]
[314290976,1708157484819,-1393.94,0.00054246,60]
[314290977,1708157484830,-549.11123908,0.00054246,60]
[314290978,1708157484841,-717.72,0.00054246,60]
[314290979,1708157484851,-993.11,0.00054246,60]
[314290980,1708157484861,-500.0,0.00054246,60]
[314290981,1708157484872,-500.0,0.00054246,60]
[314290982,1708157484884,-500.73,0.00054246,60]
[314290983,1708157484894,-854.01,0.00054246,60]
[314290984,1708157484905,-500.0,0.00054246,60]
[314290985,1708157484916,-1515.85,0.00054246,60]
[314290986,1708157484927,-636.17,0.00054246,60]
[314290987,1708157484941,-1186.43,0.00054246,60]
[314290988,1708157484952,-3147.75,0.00054246,60]
[314290989,1708157484963,-657.81,0.00054246,60]
[314290990,1708157484975,-569.8,0.00054246,60]
[314290991,1708157484987,-500.0,0.00054246,60]
[314290992,1708157485001,-5184.93,0.00054246,60]
[314290993,1708157485013,-500.0,0.00054246,60]
[314290994,1708157485029,-500.0,0.00054246,60]
[314290995,1708157485040,-556.89,0.00054246,60]
[314290996,1708157485051,-613.41894651,0.00054246,60]
[314290997,1708157485061,-1446.13,0.00054246,60]
[314290998,1708157485072,-500.0,0.00054246,60]
[314290999,1708157485092,-500.0,0.00054246,60]
[314291000,1708157485107,-1868.35,0.00054246,60]
[314291001,1708157485119,-1210.8,0.00054246,14]
[314291002,1708157485130,-643.5,0.00054246,60]
[314291003,1708157485141,-1614.2,0.00054246,60]
[314291004,1708157485153,-3236.35,0.00054246,60]
[314291005,1708157485166,-502.24,0.00054246,60]
[314291006,1708157485177,-804.5,0.00054246,60]
[314291007,1708157485188,-500.0,0.00054246,60]
[314291008,1708157485200,-910.43,0.00054246,60]
[314291009,1708157485210,-500.0,0.00054246,60]
[314291010,1708157485221,-500.0,0.00054246,60]
[314291011,1708157485232,-532.93,0.00054246,60]
[314291012,1708157485242,-253.0417481,0.00054246,60]
[314291013,1708157485254,-500.0,0.00054246,60]
[314291014,1708157485267,-2150.49,0.00054246,60]
[314291015,1708157485278,-958.24,0.00054246,60]
[314291016,1708157485289,-1655.71,0.00054246,60]
[314291017,1708157485300,-543.92,0.00054246,60]
[314291018,1708157485311,-707.56,0.00054246,60]
[314291019,1708157485322,-1947.64,0.00054246,60]
[314291020,1708157485333,-1182.25,0.00054246,60]
[314291021,1708157485344,-1133.06,0.00054246,60]
[314291022,1708157485356,-713.76,0.00054246,60]
[314291023,1708157485366,-577.85,0.00054246,60]
[314291024,1708157485377,-1166.8,0.00054246,60]
[314291025,1708157485387,-554.4,0.00054246,60]
[314291026,1708157485398,-569.35,0.00054246,60]
[314291027,1708157485408,-739.49,0.00054246,60]
[314291028,1708157485419,-500.0,0.00054246,60]
[314291029,1708157485429,-11780.69,0.00054246,60]
[314291030,1708157485439,-179.021788,0.00054248,103]
[314291031,1708157485449,-219.0,0.00054251,120]
[314291032,1708157485458,-160.0,0.00054301,120]
[314291033,1708157485468,-160.0,0.00054301,120]
[314291034,1708157485477,-151.98,0.00054338,2]
[314291035,1708157485487,-5331.02501207,0.00054348,31]
[314291036,1708157485498,-25000.0,0.000544,120]
[314291037,1708157485507,-953.0,0.00054416,120]
[314291038,1708157485519,-842.0,0.00054416,2]
[314291039,1708157485530,-1949.0,0.00054416,120]